bitfinex-derivatives/quotes_ETHF0:USTF0_20260112
["timestamp","ask_amount","ask_price","bid_price","bid_amount"]
[1768183171108,0.84098901,3126.6,3125.9,0.00405672]
[1768183171306,0.84098901,3126.5,3125.9,0.00405672]
[1768183171507,0.41550194,3126.7,3125.9,0.00405672]
[1768183171700,0.84097415,3126.6,3125.9,0.00405672]
[1768183171899,0.84097415,3126.5,3125.9,0.00405672]
[1768183172101,0.41550194,3126.7,3125.9,0.00405672]
[1768183172407,0.84097411,3126.6,3125.9,0.00405672]
[1768183172707,0.84097411,3126.5,3125.9,0.00405672]
[1768183172906,0.41550194,3126.7,3125.9,0.00405672]
[1768183173104,0.8408938,3126.6,3125.9,0.00405672]
[1768183173307,0.8408938,3126.5,3125.9,0.00405672]
[1768183173500,0.41550194,3126.7,3125.9,0.00405672]
[1768183173697,0.84089511,3126.6,3125.9,0.00405672]
[1768183173900,0.84089511,3126.5,3125.9,0.00405672]
[1768183174096,0.41550194,3126.7,3125.9,0.00405672]
[1768183174296,0.84089511,3126.6,3125.9,0.00405672]
[1768183174501,0.84089511,3126.5,3125.9,0.00405672]
[1768183174702,0.41550194,3126.7,3125.9,0.00405672]
[1768183174906,0.84090288,3126.6,3125.9,0.00405672]
[1768183175214,0.84090288,3126.5,3125.9,0.00405672]
[1768183175411,0.41550194,3126.7,3125.9,0.00405672]
[1768183175707,0.84090209,3126.6,3126.1,0.98388058]
[1768183176011,0.84090209,3126.5,3125.9,0.9879373]
[1768183176213,0.39628425,3127.1,3125.9,0.9879373]
[1768183176414,1.23718507,3127.0,3125.9,0.9879373]
[1768183176612,0.84090082,3126.9,3125.9,0.9879373]
[1768183176813,0.84090082,3126.8,3125.9,0.9879373]
[1768183177110,0.84090082,3126.7,3125.9,0.9879373]
[1768183177313,0.84090082,3126.6,3125.9,0.9879373]
[1768183177512,0.39628425,3127.0,3125.9,0.9879373]
[1768183177812,0.84088897,3126.9,3125.9,0.9879373]
[1768183178004,0.84088897,3126.8,3125.9,0.9879373]
[1768183178205,0.39628425,3127.0,3125.9,0.9879373]
[1768183178407,0.84088699,3126.9,3126.1,0.98388058]
[1768183178614,0.84088699,3126.8,3126.1,0.98388058]
[1768183178812,0.39628425,3127.0,3126.1,0.98388058]
[1768183179009,0.8408846,3126.9,3126.1,0.98388058]
[1768183179209,0.8408846,3126.8,3126.1,0.98388058]
[1768183179412,0.39628425,3127.0,3125.9,0.00405672]
[1768183179615,0.16008,3127.4,3125.9,0.00405672]
[1768183179616,0.39628425,3127.4,3126.1,0.98407895]
[1768183179914,0.39628425,3127.4,3126.1,3.28923156]
[1768183179915,0.8409974,3127.3,3126.1,3.28923156]
[1768183180106,0.8409974,3127.2,3126.1,3.28923156]
[1768183180307,0.39628425,3127.4,3126.1,0.98407895]
[1768183180615,1.23682748,3127.3,3126.0,2.30515261]
[1768183180913,0.84054323,3127.2,3126.0,2.30515261]
[1768183181221,0.39628425,3127.3,3126.0,2.30515261]
[1768183181404,0.84040759,3127.2,3126.0,2.30515261]
[1768183181604,0.39628425,3127.3,3126.0,2.30515261]
[1768183181801,0.84020824,3127.2,3126.0,2.30515261]
[1768183182006,0.39628425,3127.3,3126.0,2.30515261]
[1768183182214,0.84021354,3127.2,3126.0,2.30515261]
[1768183182507,0.39628425,3127.3,3126.0,2.30515261]
[1768183182706,0.84007042,3127.2,3125.9,2.30920933]
[1768183182917,0.39628425,3127.3,3125.9,2.30920933]
[1768183183117,0.84007105,3127.2,3125.9,2.30920933]
[1768183183316,0.39628425,3127.3,3125.9,2.30920933]
[1768183183520,0.8399663,3127.2,3125.9,2.30920933]
[1768183183827,0.39628425,3127.3,3125.9,2.30920933]
[1768183184011,0.83996484,3127.2,3125.9,2.30920933]
[1768183184320,0.39628425,3127.3,3125.9,2.30920933]
[1768183184518,0.83988866,3127.2,3125.9,2.30920933]
[1768183184711,0.39628425,3127.3,3125.9,2.30920933]
[1768183184907,0.83988703,3127.2,3125.9,2.30920933]
[1768183185220,0.39628425,3127.3,3125.9,2.30920933]
[1768183185415,0.83988722,3127.2,3125.9,2.30920933]
[1768183185615,0.39628425,3127.3,3125.9,2.30920933]
[1768183185810,0.83981219,3127.2,3125.9,2.30920933]
[1768183186107,0.39628425,3127.3,3125.9,2.30920933]
[1768183186308,0.83981453,3127.2,3125.9,2.30920933]
[1768183186513,0.39628425,3127.3,3125.9,2.30920933]
[1768183186710,0.39628425,3127.1,3125.9,2.30920933]
[1768183188620,0.39628425,3127.5,3125.9,2.30920933]
[1768183188823,0.84000067,3127.4,3125.9,2.68910093]
[1768183189024,0.84000067,3127.3,3125.9,2.68910093]
[1768183189218,0.84000067,3127.2,3125.9,2.68910093]
[1768183189517,0.39628425,3127.5,3125.9,2.68910093]
[1768183189820,0.39628425,3127.3,3125.9,2.68910093]
[1768183190114,0.83997156,3127.2,3125.9,2.68910093]
[1768183190314,0.39628425,3127.3,3125.9,2.68910093]
[1768183190521,0.83995052,3127.2,3125.9,2.68910093]
[1768183190714,0.39628425,3127.3,3125.9,2.68910093]
[1768183190915,0.83992859,3127.2,3125.9,2.68910093]
[1768183191118,0.39628425,3127.3,3125.9,2.68910093]
[1768183191323,0.83993608,3127.2,3125.9,2.68910093]
[1768183191626,0.39628425,3127.3,3125.9,2.68910093]
[1768183191817,0.83990525,3127.2,3125.9,2.68910093]
[1768183192018,0.39628425,3127.3,3125.9,2.68910093]
[1768183192323,0.83990523,3127.2,3125.9,2.68910093]
[1768183192521,0.39628425,3127.3,3125.9,2.68910093]
[1768183192722,0.83989701,3127.2,3125.9,2.68910093]
[1768183192914,0.39628425,3127.3,3125.9,2.68910093]
[1768183193114,1.23618149,3127.2,3125.9,2.30920933]
[1768183193314,0.39628425,3127.2,3125.9,2.30920933]
[1768183196928,0.39628425,3127.6,3125.9,2.30920933]
[1768183197227,1.23625221,3127.5,3125.9,2.68910093]
[1768183197418,0.83996796,3127.4,3125.9,2.68910093]
[1768183199129,0.39628425,3127.3,3125.9,2.68910093]
[1768183199427,0.83996796,3127.2,3125.9,2.68910093]
[1768183200830,0.39628425,3127.7,3126.1,0.3798916]
[1768183201122,0.39628425,3127.7,3126.2,0.3798916]
[1768183201123,0.84010219,3127.6,3126.2,0.3798916]
[1768183201324,0.45196171,3128.1,3126.3,2.30515261]
[1768183201524,0.84008166,3128.0,3126.5,0.3798916]
[1768183201732,0.84008166,3127.9,3126.5,0.3798916]
[1768183201930,0.84008166,3127.8,3126.6,0.3798916]
[1768183202135,0.39628425,3128.1,3126.5,11.7]
[1768183202331,0.39628425,3127.9,3126.5,11.7]
[1768183202531,0.39628425,3127.7,3126.5,11.7]
[1768183203325,0.39628425,3127.7,3126.2,3.84615261]
[1768183203522,0.39628425,3127.5,3126.2,3.84615261]
[1768183203724,0.39628425,3128.0,3126.4,0.3798916]
[1768183203929,0.84038216,3127.9,3126.4,0.3798916]
[1768183204130,0.84038216,3127.8,3126.4,0.3798916]
[1768183204326,0.84038216,3127.7,3126.4,0.3798916]
[1768183204633,0.39628425,3128.0,3126.4,0.3798916]
[1768183204933,0.84021723,3127.9,3126.4,0.3798916]
[1768183205132,0.84021723,3127.8,3126.4,0.3798916]
[1768183205331,0.84021723,3127.7,3126.4,0.3798916]
[1768183205520,0.39628425,3128.0,3126.4,0.3798916]
[1768183205724,0.84035968,3127.9,3126.4,0.3798916]
[1768183205930,0.84035968,3127.8,3126.4,0.3798916]
[1768183206134,0.39628425,3128.0,3126.4,0.3798916]
[1768183206135,0.84035968,3127.7,3126.4,0.3798916]
[1768183206332,0.16003,3128.3,3126.4,0.3798916]
[1768183206528,0.84044639,3128.1,3126.4,0.3798916]
[1768183206729,0.84044639,3128.0,3126.4,0.3798916]
[1768183206931,0.84044639,3127.9,3126.4,0.3798916]
[1768183207131,0.84044639,3127.8,3126.4,0.3798916]
[1768183207321,0.84044639,3127.7,3126.4,0.3798916]
[1768183207531,0.39766203,3128.1,3126.4,0.3798916]
[1768183207831,0.39766203,3127.9,3126.4,0.3798916]
[1768183208036,0.84030177,3127.8,3126.4,0.3798916]
[1768183208237,0.84030177,3127.7,3126.4,0.3798916]
[1768183208440,0.39766203,3128.3,3126.5,0.40965052]
[1768183208736,0.84047081,3128.1,3126.6,0.40965052]
[1768183208934,0.84047081,3128.0,3126.6,0.40965052]
[1768183209129,0.84047081,3127.9,3126.6,0.40965052]
[1768183209432,0.84047081,3127.8,3126.6,0.40965052]
[1768183209637,0.39766203,3128.1,3126.6,0.40965052]
[1768183209829,1.23827294,3128.0,3126.6,0.40965052]
[1768183210030,0.84061091,3127.9,3126.5,2.30515261]
[1768183210331,0.84061091,3127.8,3126.5,2.30515261]
[1768183210635,0.39766203,3128.0,3126.5,2.30515261]
[1768183210838,0.84082927,3127.9,3126.5,2.30515261]
[1768183211033,0.84082927,3127.8,3126.5,2.30515261]
[1768183211230,0.39766203,3128.0,3126.6,0.41467867]
[1768183211432,0.39435281,3128.4,3127.1,0.98407895]
[1768183211733,0.39435281,3128.8,3127.1,2.94775762]
[1768183212534,0.39689446,3128.2,3127.1,1.549]
[1768183216435,0.39689446,3128.2,3126.6,3.85415261]
[1768183217243,0.39689446,3128.2,3126.6,1.549]
[1768183217742,0.83930722,3128.1,3126.6,1.549]
[1768183217944,0.39689446,3128.2,3126.6,1.549]
[1768183217945,0.83930722,3128.0,3126.6,1.549]
[1768183218240,0.83922728,3127.9,3126.6,1.549]
[1768183218440,0.39689446,3128.2,3126.6,1.549]
[1768183218641,0.83919298,3128.1,3126.6,1.549]
[1768183218842,0.83919298,3128.0,3126.6,1.549]
[1768183219049,0.83919298,3127.9,3126.6,1.549]
[1768183219237,0.39689446,3128.2,3126.6,1.549]
[1768183219438,0.83919707,3128.1,3126.6,1.549]
[1768183219640,0.83919707,3128.0,3126.6,1.549]
[1768183219835,0.83919707,3127.9,3126.6,1.549]
[1768183220042,0.39689446,3128.2,3126.6,1.96367867]
[1768183220242,0.83917027,3128.1,3126.6,1.96367867]
[1768183220544,0.83917027,3128.0,3126.6,1.96367867]
[1768183220747,0.83917027,3127.9,3126.6,1.96367867]
[1768183220939,0.39689446,3128.2,3126.6,1.96367867]
[1768183221141,0.83917647,3128.1,3126.6,1.96367867]
[1768183221340,0.83917647,3128.0,3126.6,1.96367867]
[1768183221548,0.83917647,3127.9,3126.6,1.96367867]
[1768183221747,0.39689446,3128.2,3126.6,1.96367867]
[1768183221949,0.83801867,3128.1,3126.6,1.96367867]
[1768183222145,0.83801867,3128.0,3126.6,1.96367867]
[1768183222345,0.83801867,3127.9,3126.6,1.96367867]
[1768183222648,0.39435281,3128.1,3126.6,1.96367867]
[1768183222849,0.83808602,3128.0,3126.6,1.96367867]
[1768183223050,0.83808602,3127.9,3126.6,1.96367867]
[1768183223350,0.39435281,3128.1,3126.6,1.96367867]
[1768183223650,0.83819139,3128.0,3126.6,1.96367867]
[1768183223951,0.83819139,3127.9,3126.6,1.96367867]
[1768183224144,0.39435281,3128.1,3126.6,1.96367867]
[1768183224344,0.83824841,3128.0,3126.6,1.96367867]
[1768183224542,0.83824841,3127.9,3126.6,1.96367867]
[1768183224746,0.39435281,3128.1,3126.6,1.96367867]
[1768183224947,0.83832721,3128.0,3126.6,1.96367867]
[1768183225149,0.83832721,3127.9,3126.6,1.96367867]
[1768183225356,0.83849487,3127.8,3126.6,1.96367867]
[1768183225555,0.39435281,3128.1,3126.6,1.96367867]
[1768183225853,0.83849492,3128.0,3126.6,1.96367867]
[1768183226053,0.83849492,3127.9,3126.6,1.96367867]
[1768183226254,0.83849492,3127.8,3126.6,1.96367867]
[1768183226453,0.39435281,3128.1,3126.6,1.96367867]
[1768183226755,0.83871229,3128.0,3126.6,1.96367867]
[1768183226956,0.83871229,3127.9,3126.6,1.96367867]
[1768183227156,0.83871229,3127.8,3126.6,1.96367867]
[1768183227363,0.39435281,3128.1,3126.6,1.96367867]
[1768183227565,0.83898748,3128.0,3126.6,1.96367867]
[1768183227862,0.39435281,3128.1,3126.6,1.96367867]
[1768183228365,0.83931185,3128.0,3126.6,1.96367867]
[1768183228662,0.39435281,3128.1,3126.6,1.96367867]
[1768183228863,0.83931185,3128.0,3126.6,1.96367867]
[1768183229064,0.39435281,3128.1,3126.6,1.96367867]
[1768183229265,0.83936704,3128.0,3126.6,1.96367867]
[1768183229453,0.39435281,3128.1,3126.6,4.26883128]
[1768183229657,0.83976461,3128.0,3126.6,4.26883128]
[1768183229857,0.39435281,3128.1,3126.6,4.26883128]
[1768183230055,0.83976433,3128.0,3126.6,4.26883128]
[1768183230261,0.39435281,3128.1,3126.6,4.26883128]
[1768183230565,0.83980955,3128.0,3126.6,4.26883128]
[1768183230766,0.39435281,3128.1,3126.6,4.26883128]
[1768183230960,0.83980969,3128.0,3126.6,4.26883128]
[1768183231154,0.39435281,3128.1,3126.6,4.26883128]
[1768183231354,0.84011495,3128.0,3126.6,4.26883128]
[1768183231565,0.39435281,3128.1,3126.6,4.26883128]
[1768183231763,0.84011483,3128.0,3126.7,0.41467867]
[1768183231964,0.39435281,3128.1,3126.7,0.41467867]
[1768183232162,0.84011495,3128.0,3126.7,0.41467867]
[1768183232362,0.39435281,3128.1,3126.7,0.41467867]
[1768183232563,0.84017095,3128.0,3126.7,0.41467867]
[1768183232766,0.39435281,3128.1,3126.7,0.41467867]
[1768183232967,0.8401708,3128.0,3126.7,0.41467867]
[1768183233266,0.39435281,3128.1,3126.7,0.41467867]
[1768183233267,0.84037534,3127.9,3126.7,0.41467867]
[1768183233567,0.39435281,3128.1,3126.7,0.41467867]
[1768183233770,0.84037562,3128.0,3126.7,0.41467867]
[1768183233953,0.84037562,3127.9,3126.7,0.41467867]
[1768183234160,0.39435281,3128.1,3126.7,2.71983128]
[1768183234459,0.84064669,3128.0,3126.7,2.71983128]
[1768183234660,0.84064669,3127.9,3126.7,2.71983128]
[1768183234962,0.39435281,3128.1,3126.7,2.71983128]
[1768183235157,0.84064671,3128.0,3126.7,2.71983128]
[1768183235359,0.84064671,3127.9,3126.7,2.71983128]
[1768183235554,0.39435281,3128.1,3126.7,2.71983128]
[1768183235854,0.84066194,3128.0,3126.7,2.71983128]
[1768183236057,0.84066194,3127.9,3126.7,2.71983128]
[1768183236254,0.39435281,3128.1,3126.7,2.71983128]
[1768183236454,0.84067671,3128.0,3126.7,2.71983128]
[1768183236660,0.84067671,3127.9,3126.7,2.71983128]
[1768183236866,0.39435281,3128.1,3126.7,2.71983128]
[1768183237166,0.84067643,3128.0,3126.7,2.71983128]
[1768183237366,0.84067643,3127.9,3126.7,2.71983128]
[1768183237567,0.39435281,3128.1,3126.7,2.71983128]
[1768183237772,0.84069122,3128.0,3126.7,0.41467867]
[1768183237969,0.84069122,3127.9,3126.7,0.41467867]
[1768183238270,0.39435281,3128.1,3126.7,0.41467867]
[1768183238465,0.84070483,3128.0,3126.7,0.41467867]
[1768183238661,0.84070483,3127.9,3126.7,0.41467867]
[1768183238860,0.39435281,3128.1,3126.7,0.41467867]
[1768183239062,0.84070497,3128.0,3126.7,0.41467867]
[1768183239268,0.84070497,3127.9,3126.7,0.41467867]
[1768183239470,0.39435281,3128.1,3126.7,0.41467867]
[1768183239774,0.84071789,3128.0,3126.7,0.41467867]
[1768183239974,0.84071789,3127.9,3126.9,0.39134609]
[1768183240275,0.00254165,3128.2,3126.9,0.39134609]
[1768183240568,0.84073081,3128.1,3126.9,0.39134609]
[1768183240758,0.84073081,3128.0,3126.9,0.39134609]
[1768183240958,0.84073081,3127.9,3126.9,0.39134609]
[1768183241155,0.00254165,3128.2,3126.9,0.39134609]
[1768183241360,0.84074356,3128.1,3127.0,0.98343847]
[1768183241563,0.84074356,3128.0,3127.0,0.98343847]
[1768183241763,0.84074356,3127.9,3127.0,0.98343847]
[1768183241973,0.42300274,3128.2,3126.9,0.98343847]
[1768183242269,0.84074354,3128.1,3126.9,0.98343847]
[1768183242571,0.84074354,3128.0,3126.9,0.98343847]
[1768183242766,0.84074354,3127.9,3126.9,0.98343847]
[1768183242970,0.42300274,3128.2,3126.9,0.98343847]
[1768183243167,0.84075511,3128.1,3126.9,0.98343847]
[1768183243357,0.84075511,3128.0,3127.5,0.98343847]
[1768183243565,0.42046109,3129.0,3127.5,1.37478456]
[1768183243762,0.42046109,3129.0,3127.9,0.98343847]
[1768183244369,1.40389956,3129.0,3127.7,0.98343847]
[1768183244562,1.40748574,3129.0,3127.6,0.39134609]
[1768183244763,1.40748574,3129.0,3127.6,1.37478456]
[1768183245269,0.98343847,3128.8,3127.6,0.98343847]
[1768183245467,1.40389956,3128.8,3127.6,0.98343847]
[1768183246772,0.98702465,3129.0,3127.8,0.98343847]
[1768183247370,1.40748574,3129.0,3127.8,0.98343847]
[1768183248971,1.40748574,3129.0,3127.6,0.98343847]
[1768183249363,0.98343847,3128.6,3127.4,1.37478456]
[1768183249670,0.42046109,3128.7,3127.4,1.37478456]
[1768183250168,0.42046109,3128.7,3127.4,0.39134609]
[1768183250368,0.42046109,3128.7,3127.6,0.98343847]
[1768183251769,0.42046109,3128.7,3127.4,0.39134609]
[1768183251770,1.40389956,3128.6,3127.4,0.98343847]
[1768183251976,1.40389956,3128.2,3127.0,2.30515261]
[1768183252267,0.42046109,3128.2,3127.1,0.98343847]
[1768183253062,0.98343847,3128.4,3127.1,0.98343847]
[1768183253266,1.40389956,3128.6,3127.3,0.98343847]
[1768183253573,0.42046109,3128.7,3127.5,0.98343847]
[1768183253772,0.98343847,3128.6,3127.3,0.98343847]
[1768183253975,0.42046109,3128.6,3127.3,0.98343847]
[1768183254176,0.98343847,3128.5,3127.3,0.98343847]
[1768183256876,0.42046109,3128.6,3127.3,0.98343847]
[1768183257075,0.83462158,3128.5,3127.5,0.98343847]
[1768183257277,0.42046109,3128.6,3127.5,0.98343847]
[1768183257479,0.83460654,3128.5,3127.5,0.98343847]
[1768183257770,0.83460953,3128.4,3127.5,0.98343847]
[1768183257977,0.83460953,3128.3,3127.3,0.98343847]
[1768183258278,1.40389956,3128.6,3127.3,0.98343847]
[1768183258478,0.83463379,3128.5,3127.3,0.98343847]
[1768183258678,0.83463379,3128.4,3127.3,0.98343847]
[1768183258876,0.83463379,3128.3,3127.3,0.98343847]
[1768183259075,0.42046109,3128.3,3127.1,0.98343847]
[1768183261184,0.42046109,3128.9,3127.2,0.39134609]
[1768183261371,0.83471095,3128.8,3128.0,0.98343847]
[1768183261680,0.83471095,3128.7,3127.8,0.98343847]
[1768183261881,0.83471095,3128.6,3127.8,0.98343847]
[1768183262076,0.42046109,3128.4,3127.0,0.1601]
[1768183262382,0.42046109,3128.4,3127.2,0.98343847]
[1768183262881,0.42046109,3128.4,3126.8,2.6964987]
[1768183262882,0.98343847,3128.3,3126.8,2.6964987]
[1768183263086,1.40389956,3128.3,3126.9,0.98343847]
[1768183263284,1.40389956,3128.3,3127.1,0.98343847]
[1768183264878,0.00358618,3129.0,3127.8,0.98343847]
[1768183265085,0.41459419,3128.9,3127.8,0.98343847]
[1768183265383,0.41459419,3128.9,3127.3,0.39452379]
[1768183265384,0.41459419,3128.9,3128.0,0.98343847]
[1768183265680,0.83476608,3128.8,3128.0,0.98343847]
[1768183265978,0.83476608,3128.7,3127.8,0.98343847]
[1768183266179,0.83476608,3128.6,3127.3,0.39452379]
[1768183266380,0.83476608,3128.5,3127.5,0.98343847]
[1768183266682,0.83476608,3128.4,3127.5,0.98343847]
[1768183266884,1.39803266,3128.9,3127.5,0.98343847]
[1768183267185,0.83481506,3128.8,3127.5,0.98343847]
[1768183267383,0.83481506,3128.7,3127.5,0.98343847]
[1768183267583,0.41459419,3128.5,3127.5,0.98343847]
[1768183267787,0.98343847,3128.7,3127.5,0.98343847]
[1768183267986,1.39803266,3128.9,3127.7,0.98343847]
[1768183268177,0.8349013,3128.8,3127.7,0.98343847]
[1768183268477,0.8349013,3128.7,3127.7,0.98343847]
[1768183268678,1.39803266,3128.9,3127.7,0.98343847]
[1768183268879,0.83501294,3128.8,3127.7,0.98343847]
[1768183269183,0.83501294,3128.7,3127.7,0.98343847]
[1768183269386,1.39803266,3128.9,3127.7,0.98343847]
[1768183269587,0.83515596,3128.8,3127.7,0.98343847]
[1768183269786,0.83515596,3128.7,3127.7,0.98343847]
[1768183269990,1.39803266,3128.9,3127.7,0.98343847]
[1768183270184,0.83515576,3128.8,3127.7,0.98343847]
[1768183270386,0.83515576,3128.7,3127.7,0.98343847]
[1768183270587,0.41459419,3128.9,3127.7,0.98343847]
[1768183270785,0.83532782,3128.8,3127.7,0.98343847]
[1768183270985,0.83532782,3128.7,3127.7,0.98343847]
[1768183271182,0.00358618,3129.0,3128.1,0.98343847]
[1768183271392,0.83544264,3128.9,3128.1,0.00387844]
[1768183271579,0.83544264,3128.8,3128.1,0.00387844]
[1768183271784,0.00358618,3129.0,3128.1,0.00387844]
[1768183272086,0.83544247,3128.9,3128.1,0.00387844]
[1768183272283,0.83544247,3128.8,3128.1,0.00387844]
[1768183272486,0.98702465,3129.0,3128.1,0.00387844]
[1768183272686,0.83567695,3128.9,3128.1,0.00387844]
[1768183272888,0.83567695,3128.8,3128.1,0.00387844]
[1768183273089,0.98702465,3129.0,3128.1,0.00387844]
[1768183273287,0.83610956,3128.9,3128.1,0.00387844]
[1768183273480,2.20969001,3128.8,3128.1,0.00387844]
[1768183273684,0.83610956,3128.7,3128.1,0.00387844]
[1768183273886,1.37358045,3128.8,3128.1,0.00387844]
[1768183274093,0.83607185,3128.7,3128.1,0.00387844]
[1768183274390,1.37358045,3128.8,3128.1,0.00387844]
[1768183274590,0.83607095,3128.7,3128.1,0.00387844]
[1768183274784,1.37358045,3128.8,3128.1,0.00387844]
[1768183274983,1.22621322,3128.7,3128.1,0.00387844]
[1768183275184,1.37358045,3128.4,3127.3,2.29558719]
[1768183275589,0.39014198,3128.3,3127.3,2.29558719]
[1768183275797,0.39014198,3128.3,3127.1,0.98343847]
[1768183275798,0.39014198,3128.3,3127.2,2.29558719]
[1768183276293,0.16358618,3129.0,3127.2,0.00304417]
[1768183276294,2.20967113,3128.2,3127.2,0.00304417]
[1768183276489,1.37358045,3128.2,3127.2,0.00304417]
[1768183277191,0.39014198,3128.2,3127.2,0.00304417]
[1768183280588,1.37358045,3127.6,3127.2,0.00304417]
[1768183280790,1.37358045,3127.4,3126.3,5.16507118]
[1768183280991,0.98343847,3127.0,3125.9,5.16507118]
[1768183281293,0.39014198,3127.1,3125.8,2.29558719]
[1768183281488,0.39014198,3127.1,3125.9,0.98343847]
[1768183281689,0.39014198,3127.1,3125.9,0.98641284]
[1768183282085,0.39014198,3126.9,3125.9,0.00297437]
[1768183285408,1.37358045,3126.3,3124.7,5.32529118]
[1768183285595,0.39014198,3126.2,3124.7,0.16022]
[1768183285899,0.98343847,3126.6,3124.3,4.43048399]
[1768183285900,0.98343847,3125.7,3124.4,3.27902566]
[1768183286097,1.37358045,3125.9,3124.6,0.98343847]
[1768183286293,0.39391743,3125.9,3125.0,0.98343847]
[1768183286506,0.00377545,3125.9,3125.0,0.98343847]
[1768183287902,0.00377545,3125.9,3124.8,0.98343847]
[1768183288103,0.00377545,3125.9,3124.6,0.98587328]
[1768183288104,0.98721392,3125.9,3124.6,0.98587328]
[1768183288308,0.98721392,3125.9,3124.7,0.98343847]
[1768183288610,0.98343847,3125.2,3124.6,0.00243481]
[1768183289114,0.98343847,3125.4,3124.6,0.00243481]
[1768183289911,1.37358045,3125.0,3124.6,0.00243481]
[1768183290107,1.37358045,3125.0,3123.7,0.98343847]
[1768183290613,1.37358045,3125.0,3123.8,11.7]
[1768183291116,1.37358045,3125.0,3123.8,0.00267596]
[1768183291314,0.39014198,3124.8,3123.8,0.00267596]
[1768183292616,0.39014198,3125.5,3123.8,0.00267596]
[1768183293417,0.39014198,3125.5,3123.8,0.39293051]
[1768183294019,0.39391743,3125.9,3123.9,0.39025455]
[1768183294521,0.00377545,3125.9,3124.2,0.39201143]
[1768183294913,0.00377545,3125.9,3124.2,0.55225143]
[1768183295115,0.00377545,3125.9,3124.7,0.39201143]
[1768183297014,0.00377545,3125.9,3124.6,1.72322]
[1768183297222,0.00377545,3125.9,3124.7,11.7]
[1768183297521,0.42688921,3125.9,3124.7,11.7]
[1768183298123,0.42688921,3125.9,3124.3,0.39201143]
[1768183298416,0.42688921,3125.9,3124.4,11.7]
[1768183299218,0.00377545,3125.9,3124.5,0.39201143]
[1768183300021,0.00377545,3125.9,3124.8,0.39201143]
[1768183301123,0.42311376,3126.8,3125.2,1.96911162]
[1768183301324,3.62611376,3127.2,3125.3,0.39201143]
[1768183301620,0.42311376,3127.1,3125.3,0.39201143]
[1768183302221,0.42664082,3127.1,3125.3,0.39201143]
[1768183302524,0.42664082,3127.1,3125.0,0.1602]
[1768183303124,0.42311376,3126.9,3125.0,0.1602]
[1768183304214,0.42311376,3126.9,3125.1,0.39201143]
[1768183305627,0.00352706,3127.1,3125.2,0.39201143]
[1768183306325,0.8358689,3127.0,3125.2,0.39201143]
[1768183306522,0.00352706,3127.1,3125.2,0.39201143]
[1768183307226,0.83637622,3127.0,3125.2,0.39201143]
[1768183307527,0.00352706,3127.1,3125.2,0.39201143]
[1768183307724,0.8363762,3127.0,3125.2,0.39201143]
[1768183308025,0.00352706,3127.1,3125.4,0.39201143]
[1768183309120,0.00352706,3127.1,3125.8,0.39201143]
[1768183309521,0.00352706,3127.1,3126.0,0.55216143]
[1768183309722,0.42311376,3128.3,3126.1,0.39201143]
[1768183310025,1.26033749,3128.2,3126.1,0.39201143]
[1768183310224,0.83722373,3128.1,3126.1,0.39201143]
[1768183310526,0.83722373,3128.0,3126.1,0.39201143]
[1768183310721,0.83722373,3127.9,3126.1,0.39201143]
[1768183310917,1.26033749,3127.9,3126.1,0.39201143]
[1768183311118,0.83722373,3127.8,3126.1,0.39201143]
[1768183312030,1.26033749,3127.8,3126.1,0.39201143]
[1768183312231,0.83722373,3127.7,3126.1,0.39201143]
[1768183314026,0.83722373,3127.7,3126.3,0.55214143]
[1768183314532,0.83722373,3127.6,3126.3,0.55214143]
[1768183314723,0.42311376,3127.9,3126.3,0.55214143]
[1768183314924,0.84127542,3127.8,3126.4,11.7]
[1768183315225,0.84127542,3127.7,3126.4,11.7]
[1768183315423,0.42311376,3127.9,3126.4,11.7]
[1768183315629,0.84106035,3127.8,3126.4,11.7]
[1768183315828,0.42311376,3127.9,3126.4,11.7]
[1768183315829,0.84106035,3127.7,3126.4,11.7]
[1768183316129,0.42311376,3127.9,3126.4,11.7]
[1768183316332,0.84105672,3127.8,3126.4,11.7]
[1768183316630,0.84105672,3127.7,3126.4,11.7]
[1768183316824,0.42311376,3127.9,3126.4,11.7]
[1768183317023,0.84082741,3127.8,3126.4,11.7]
[1768183317225,0.84082741,3127.7,3126.4,11.7]
[1768183317427,0.42311376,3127.9,3126.4,11.7]
[1768183317626,0.8406263,3127.8,3126.4,11.7]
[1768183317828,0.42311376,3127.7,3126.4,11.7]
[1768183319336,0.00307848,3128.0,3126.4,11.7]
[1768183319534,0.84051729,3127.9,3126.4,11.7]
[1768183319736,0.00307848,3128.0,3126.4,11.7]
[1768183320034,0.84051715,3127.9,3126.4,11.7]
[1768183320228,0.00307848,3128.0,3126.4,11.7]
[1768183320430,0.84066065,3127.9,3126.5,0.39201143]
[1768183320627,0.00307848,3128.0,3126.8,0.39201143]
[1768183322139,0.00307848,3128.0,3126.7,0.16011]
[1768183322333,0.42619224,3128.0,3126.7,0.16011]
[1768183323230,0.00307848,3128.0,3126.7,0.16011]
[1768183324138,0.42883451,3128.9,3127.0,0.4036574]
[1768183324333,0.84112445,3128.8,3127.0,0.4036574]
[1768183324536,0.42883451,3128.6,3127.1,0.16009]
[1768183324733,0.42883451,3128.4,3127.1,0.16009]
[1768183325137,0.43269329,3128.4,3127.1,0.16009]
[1768183325436,0.43269329,3128.4,3126.7,0.4036574]
[1768183325938,0.43269329,3128.4,3126.8,0.4036574]
[1768183327039,0.00385878,3128.4,3126.9,0.1601]
[1768183327235,0.00385878,3128.4,3127.0,0.4036574]
[1768183329340,0.00385878,3128.4,3127.2,0.4036574]
[1768183330650,0.00385878,3128.4,3127.4,0.42534686]
[1768183332044,0.21561568,3129.6,3127.4,0.42534686]
[1768183332347,0.39325078,3129.5,3127.4,0.42534686]
[1768183333038,0.39589736,3129.5,3127.4,0.42534686]
[1768183333341,0.39589736,3129.5,3127.5,12.12534686]
[1768183334244,0.39589736,3129.5,3127.6,0.58541686]
[1768183334546,0.39589736,3129.5,3127.7,0.42534686]
[1768183335348,0.39589736,3129.5,3127.8,0.42534686]
[1768183335848,0.00264658,3129.5,3128.1,0.42534686]
[1768183336146,0.00264658,3129.5,3128.1,1.99334686]
[1768183336548,0.00264658,3129.5,3128.2,0.42534686]
[1768183336747,0.00264658,3129.5,3128.2,0.4282495]
[1768183339955,0.00264658,3129.5,3128.2,0.00290264]
[1768183341458,0.39589736,3129.5,3128.2,0.00290264]
[1768183344664,0.00264658,3129.5,3128.2,0.4282495]
[1768183349057,0.00264658,3129.5,3128.2,0.00290264]
[1768183349261,0.39589736,3129.5,3128.2,0.00290264]
[1768183349961,0.39325078,3129.4,3127.5,11.7]
[1768183350361,0.55323078,3129.4,3127.3,0.42534686]
[1768183350561,0.39325078,3129.2,3127.3,0.42534686]
[1768183350764,0.39325078,3129.0,3127.3,0.42534686]
[1768183350963,0.84323016,3128.9,3127.4,11.7]
[1768183351166,0.84329277,3128.8,3127.4,11.7]
[1768183351459,0.84342548,3128.7,3127.3,0.00289937]
[1768183351664,0.84342548,3128.6,3127.3,0.00289937]
[1768183351864,0.39325078,3128.9,3127.3,11.70289937]
[1768183352071,0.8434723,3128.8,3127.3,11.70289937]